Workbook

Sheet от 1года до 3 лет
A1: Утверждаю | H1: Согласовано
A2: Директор ООО"АБК - Пэймент" | H2: Руководитель дошкольной образовательной
A3: Рахматуллин Р.Р. | H3: организации
E6: Примерное 10-дневное меню
E7: для организации питания детей с аллергическими заболеваниями
E8: в дошкольных учреждениях с 12 - часовым пребыванием от 1 года до 3 лет
A10: День 1 - ый
A11: Наименование блюд и | C11: Масса | D11: Кол - во | E11: Кол - во | F11: Пищевые вещества | I11: Энергетическая | J11: витамин | K11: Сборник
A12: продуктов | C12: порции | D12: (в гр ) | E12: (в гр ) | I12: ценность | K12: рецептур
D13: брутто | E13: нетто | F13: белки | G13: жиры | H13: угл-ды | I13: Ккал | J13: С
A15: Каша кукурузная молочная с маслом сливочным | C15: 140/4 | F15: 5.32 | G15: 5.60 | H15: 35.51 | I15: 214.00 | J15: 0.67 | K15: ТТК № 2Д
B16: Крупа кукурузная | D16: 18 | E16: 18
B17: Молоко | D17: 70 | E17: 70
B18: Вода | D18: 53 | E18: 53
B19: Сахар | D19: 2 | E19: 2
B20: соль иодированная | D20: 0.4 | E20: 0.4
B21: Масло сливочное | D21: 4 | E21: 4
A22: Кофейный напиток с молоком | C22: 180/6 | F22: 2.85 | G22: 2.41 | H22: 10.35 | I22: 74.58 | J22: 1.17 | K22: №414 Дели 2016
B23: Кофейный напиток | D23: 2.50 | E23: 2.50
B24: Сахар | D24: 6.00 | E24: 6.00
B25: Молоко | D25: 90.00 | E25: 90.00
B26: Вода | D26: 108.00 | E26: 108.00
A27: Бутерброд с маслом сливочным | C27: 25/5 | F27: 1.92 | G27: 4.36 | H27: 12.92 | I27: 98.50 | K27: №1 Дели 2016
B28: Батон нарезной | D28: 25 | E28: 25
B29: Масло сливочное | D29: 5 | E29: 5
A30: Итого: | C30: 360 | F30: =F27+F22+F15 -> 10.09 | G30: =G27+G22+G15 -> 12.37 | H30: 58.78 | I30: 387.08 | J30: 1.84
B31: 2 - ой ЗАВТРАК
A32: Кисломолочный напиток | C32: 150/2 | F32: 4.35 | G32: 3.75 | H32: 8.00 | I32: 83.00 | J32: 1.05 | K32: №420 Сб дошк 2016
A33: (Кефир,ряженка,катык,напиток ацидофильный) | B33: кисломолочный напиток | D33: 155 | E33: 150
B34: сахар | D34: 2 | E34: 2
A35: Итого: | C35: 152 | F35: =F32 -> 4.35 | G35: =G32 -> 3.75 | H35: 8.00 | I35: 83.00 | J35: 1.05
B36: ОБЕД
A37: Салат из моркови с изюмом | C37: 40 | F37: 0.50 | G37: 0.05 | H37: 8.91 | I37: 38.12 | J37: 1.61 | K37: №66 сб школьн. 2017
B38: морковь | D38: 45.00 | E38: 36.00
B39: изюм | D39: 4.80 | E39: 4.70
B40: сахар | D40: 0.20 | E40: 0.20
A41: Суп гороховый с картофелем, на бульоне из индейки, с гренками | C41: 150/10 | F41: 4.54 | G41: 3.32 | H41: 17.53 | I41: 125.77 | J41: 3.50 | K41: СБ дошк.2016 №87
B42: Картофель | D42: 40.05 | E42: 30
B43: Горох колотый | D43: 12.15 | E43: 12
B44: лук репчатый | D44: 7.2 | E44: 6
B45: Морковь | D45: 9.6 | E45: 7.5
B46: соль иодированная | D46: 0.5 | E46: 0.5
B47: Масло растительное | D47: 3 | E47: 3
B48: Бульон | D48: 105 | E48: 105
B49: гренки пшеничные: | E49: 10
B50: хлеб пшеничный | D50: 18.75 | E50: 15.75
A51: Плов из отварной индейки | C51: 150 | F51: 12.71 | G51: 7.85 | H51: 26.80 | I51: 229.00 | J51: 4.52 | K51: №321 сбдошк2016
B52: филе грудок индейки | D52: 58.00 | E52: 55.2
B53: масса отварного филе грудок индейки | E53: 24.0
B54: масло сливочное | D54: 5.0 | E54: 5.0
B55: Лук репчатый | D55: 8.9 | E55: 7.5
B56: Морковь | D56: 12.5 | E56: 10.0
B57: Крупа рисовая | D57: 32.0 | E57: 32.0
B58: вода | D58: 65.0 | E58: 65.0
B59: соль иодированная | D59: 0.5 | E59: 0.5
B60: масса гарнира | E60: 126.0
A61: Компот из урюка | C61: 150 | F61: 0.35 | G61: 0.02 | H61: 13.83 | I61: 56.83 | J61: 0.00 | K61: №394 СБ дошк 2016
B62: урюк | D62: 15.3 | E62: 15.0
B63: масса отварных сухофруктов | E63: 24.0
B64: Вода | D64: 152 | E64: 152.0
B65: сахар | D65: 5 | E65: 5
A66: Хлеб ржаной | C66: 45 | D66: 45 | E66: 45 | F66: 2.97 | G66: 0.54 | H66: 17.80 | I66: 89.01 | J66: 0 | K66: табл 6 стр 144,Дели + 2012
A67: Итого: | C67: 545 | F67: =F66+F61+F51+F41+F37 -> 21.07 | G67: =G66+G61+G51+G41+G37 -> 11.78 | H67: 84.87 | I67: 538.73 | J67: 9.63
B68: УПЛОТНЕННЫЙ ПОЛДНИК
A69: Фрукты свежие | C69: 100 | D69: 100 | E69: 100 | F69: 0.40 | G69: 0.40 | H69: 9.80 | I69: 47.00 | J69: 10.00 | K69: №386 СБ
A70: (яблоки зеленые ) | K70: дошк.2016
A71: Котлеты рыбные | C71: 50 | F71: 6.41 | G71: 3.41 | H71: 5.58 | I71: 72.63 | J71: 0.33 | K71: №234 сб шк 2017
B72: рыба (минтай с/м БГ) | D72: 45.22 | E72: 33.0
B73: соль иодированная | D73: 0.5 | E73: 0.5
B74: хлеб пшеничный | D74: 9.0 | E74: 9.0
B75: молоко | D75: 13.00 | E75: 13.0
B76: сухари панировочные | D76: 5.0 | E76: 5.0
B77: масса полуфабриката | E77: 58.0
B78: масло растительное | D78: 2.0 | E78: 2.0
A79: Пюре Картофельное | C79: 120 | F79: 2.45 | G79: 3.84 | H79: 16.35 | I79: 109.80 | J79: 14.53 | K79: № 339 СБ дошк 2016
B80: Картофель | D80: 136.80 | E80: 102.60
B81: Молоко | D81: 18.96 | E81: 18.00
B82: Масло сливочное | D82: 4.20 | E82: 4.20
B83: соль иодированная | D83: 0.45 | E83: 0.45
A84: Чай с сахаром | C84: 150/5 | F84: 0.05 | G84: 0.02 | H84: 5.02 | I84: 20.08 | J84: 0.03 | K84: №411 Дели 2016
B85: чай весовой | D85: 0.4 | E85: 0.4
B86: Сахар | D86: 5 | E86: 5
B87: Вода | D87: 150 | E87: 150
A88: Хлебцы ржаные | B88: хлебцы ржаные | C88: 10 | D88: 10.00 | E88: 10.00 | F88: 0.72 | G88: 0.13 | H88: 6.94 | I88: 31.80 | K88: ТТК
A89: Хлеб ржаной | C89: 20 | D89: 20.00 | E89: 20.00 | F89: =F66*20/45 -> 1.32 | G89: =G66*20/45 -> 0.24 | H89: =H66*20/45 -> 7.91 | I89: =I66*20/45 -> 39.56 | J89: =J66*20/45 -> 0.00 | K89: табл 6 стр 144, Дели + 2012
A90: Итого: | C90: =C89+C88+155+C79+C71+C69 -> 455 | F90: =F89+F88+F84+F79+F71+F69 -> 11.35 | G90: =G89+G88+G84+G79+G71+G69 -> 8.04 | H90: 51.61 | I90: 320.87 | J90: 24.89
A91: ВСЕГО: | C91: =C30+C35+C67+C90 -> 1512 | F91: =F30+F35+F67+F90 -> 46.86 | G91: =G30+G35+G67+G90 -> 35.93 | H91: =H30+H35+H67+H90 -> 203.26 | I91: =I30+I35+I67+I90 -> 1329.68 | J91: =J30+J35+J67+J90 -> 37.41
A93: День 2- ой
A94: Наименование блюд и | C94: Масса | D94: Кол - во | E94: Кол - во | F94: Пищевые вещества | I94: Энергетическая | J94: Витамин | K94: Сборник
A95: продуктов | C95: порции | D95: (в гр ) | E95: (в гр ) | I95: ценность | K95: рецептур
D96: брутто | E96: нетто | F96: белки | G96: жиры | H96: угл-ды | I96: Ккал | J96: С
B97: ЗАВТРАК
A98: Каша полбяная молочная с маслом сливочным | C98: 140/3 | F98: 3.76 | G98: 6.13 | H98: 22.96 | I98: 162.00 | J98: 0.67 | K98: ТТК №1Д
B99: Крупа полбяная | D99: 18 | E99: 18
B100: Молоко | D100: 70 | E100: 70
B101: вода | D101: 53 | E101: 53
B102: Сахар | D102: 2 | E102: 2
B103: соль иодированная | D103: 0.4 | E103: 0.4
B104: Масло сливочное | D104: 3 | E104: 3
A105: Какао с молоком | C105: 180/6 | F105: 3.67 | G105: 3.19 | H105: 10.87 | I105: 90.78 | J105: 1.43 | K105: №416 Дели2016
B106: Какао-порошок | D106: 2.00 | E106: 2.00
B107: Сахар | D107: 6.00 | E107: 6.00
B108: Молоко | D108: 110.00 | E108: 110.00
B109: Вода | D109: 80.00 | E109: 80.00
A110: Бутерброд с сыром, маслом сливочным | C110: 25/5/5 | F110: 2.53 | G110: 5.69 | H110: 12.92 | I110: 115.67 | J110: 0.04 | K110: №3 сб дошк2016
B111: Батон нарезной | D111: 25 | E111: 25
B112: Сыр | D112: 5.1 | E112: 5
B113: Масло сливочное | D113: 5 | E113: 5
A114: Итого: | C114: 364 | F114: =F98+F105+F110 -> 9.96 | G114: =G98+G105+G110 -> 15.01 | H114: =H98+H105+H110 -> 46.75 | I114: =I98+I105+I110 -> 368.45 | J114: =J98+J105+J110 -> 2.14
B115: 2 - ой ЗАВТРАК
A116: Кисломолочный напиток | C116: 150 | F116: 4.35 | G116: 3.75 | H116: 6.30 | I116: 76.50 | J116: 0.45 | K116: №420 Сб дошк 2016
A117: (кефир,ряженка,катык,напиток ацидофильный) | B117: кисломолочный напиток | D117: 155 | E117: 150
A118: Итого: | C118: 150 | F118: =F116 -> 4.35 | G118: =G116 -> 3.75 | H118: 6.30 | I118: 76.50 | J118: 0.45
B119: ОБЕД
A120: Салат из свежей капусты с морковью | C120: 40 | F120: 0.56 | G120: 2.03 | H120: 3.61 | I120: 34.96 | J120: 1.86 | K120: №21 сб дошк 2016
B121: капуста свежая | D121: 46.25 | E121: 37.00
B122: масса прогретой капусты | E122: 33.4
B123: морковь | D123: 5.00 | E123: 4.00
B124: Сахар | D124: 0.70 | E124: 0.70
B125: Масло растительное | D125: 2.00 | E125: 2.00
B126: соль иодированная | D126: 0.20 | E126: 0.20
A127: Борщ со свежей капустой, картофелем, со сметаной | C127: 150/7 | F127: 1.26 | G127: 4.00 | H127: 6.81 | I127: 73.58 | J127: 6.43 | K127: №63,сбдошк2016
B128: Капуста свежая | D128: 15.0 | E128: 12.0
B129: Картофель | D129: 15.96 | E129: 12.0
B130: Морковь | D130: 7.5 | E130: 6.0
B131: Лук репчатый | D131: 7.14 | E131: 6.0
B132: Свекла | D132: 30.72 | E132: 24.0
B133: Сахар | D133: 0.8 | E133: 0.8
B134: Масло растительное | D134: 3.0 | E134: 3.0
B135: соль иодированная | D135: 0.5 | E135: 0.5
B136: вода | D136: 120 | E136: 120.0
B137: Сметана | D137: 7.0 | E137: 7.0
B138: Томатная паста | D138: 0.8 | E138: 0.8
A139: Биточки "Домашние" (из индейки) | C139: 50 | F139: 7.41 | G139: 5.79 | H139: 10.68 | I139: 110.54 | J139: 0.05 | K139: Акт проработки от 25.12.2018 №569
B140: филе грудок индейки | D140: 41.37 | E140: 39.4
B141: морковь | D141: 11.85 | E141: 9.4
B142: Лук репчатый | D142: 14.4 | E142: 12
B143: Масло растительное | D143: 1 | E143: 1
B144: масса припущенного лука | E144: 6
B145: соль иодированная | D145: 0.4 | E145: 0.4
B146: яйцо | D146: 0.6 | E146: 0.5
B147: Мука пшеничная | D147: 3.75 | E147: 3.75
B148: масса полуфабриката | E148: 59
B149: масло растительное | D149: 2 | E149: 2
A150: Каша гречневая рассыпчатая с овощами с маслом сливочным | C150: 110/2 | F150: 3.21 | G150: 1.62 | H150: 22.36 | I150: 116.60 | J150: 0.41 | K150: №180, сб дошк2016
B151: крупа гречневая | D151: 47.6 | E151: 47.6
B152: вода питьевая | D152: 71.0 | E152: 71.0
B153: соль иодированная | D153: 0.3 | E153: 0.3
B154: масса каши | E154: 100.0
B155: морковь | D155: 16.5 | E155: 13.2
B156: лук репчатый | D156: 2.0 | E156: 1.7
B157: масса каши с овощами | E157: 110.0
B158: масло сливочное | D158: 2.0 | E158: 2.0
A159: Напиток из сухофруктов | C159: 150 | F159: 0.50 | G159: 0.07 | H159: 14.00 | I159: 60 | J159: 0.54 | K159: №394 Сб дошк 2016
B160: сухофрукты | D160: 12.75 | E160: 12.50
B161: Сахар | D161: 5.00 | E161: 5.00
B162: вода | D162: 152.00 | E162: 152.00
A163: Хлеб ржаной | C163: 45 | D163: 45 | E163: 45 | F163: 2.97 | G163: 0.54 | H163: 17.80 | I163: 89.01 | J163: 0 | K163: табл 6 стр 144,Дели + 2012
A164: Итого: | C164: 554 | F164: =F163+F159+F150+F139+F127+F120 -> 15.91 | G164: =G163+G159+G150+G139+G127+G120 -> 14.04 | H164: 75.26 | I164: 484.69 | J164: 9.29
B165: УПЛОТНЕННЫЙ ПОЛДНИК
A166: Сок гипоаллергенный в инд упаковке | C166: 125 | D166: 125 | E166: 125 | F166: 0.63 | G166: 0.00 | H166: 12.63 | I166: 53.34 | J166: 2.50 | K166: №418 Дели2016
A167: Запеканка творожная с повидлом | C167: 110/20 | F167: 19.33 | G167: 16.98 | H167: 21.93 | I167: 317.80 | J167: 0.49 | K167: № 251 сб дошк 2016
B168: Творог | D168: 103.2 | E168: 101.2
B169: крупа манная | D169: 6.6 | E169: 6.6
B170: Яйцо | D170: 5.28 | E170: 4.4
B171: Сахар | D171: 8.8 | E171: 8.8
B172: Сметана | D172: 4.4 | E172: 4.4
B173: Масло сливочное | D173: 4.4 | E173: 4.4
B174: Сухари панировочные | D174: 4.4 | E174: 4.4
B175: соль иодированная | D175: 0.55 | E175: 0.55
B176: повидлом | D176: 20.00 | E176: 20.00
A177: Чай с сахаром и лимоном | C177: 150/5/5 | F177: 0.10 | G177: 0.02 | H177: 5.17 | I177: 21.78 | J177: 2.24 | K177: №410,412 Дели 2016
B178: чай весовой | D178: 0.8 | E178: 0.8
B179: Сахар | D179: 5 | E179: 5
B180: лимон | D180: 5.55 | E180: 5
B181: Вода | D181: 150.0 | E181: 150.0
A182: Булочка дорожная | C182: 35 | F182: 2.73 | G182: 4.90 | H182: 18.25 | I182: 126.70 | K182: №453 сб дошк2016
B183: Мука пшеничная | D183: 21.35 | E183: 21.00
B184: мука пшеничная на подпыл | D184: 0.70 | E184: 0.70
B185: Сахар | D185: 4.20 | E185: 4.20
B186: Масло сливочное | D186: 4.55 | E186: 4.55
B187: соль иодированная | D187: 0.21 | E187: 0.21
B188: дрожжи сухие | D188: 0.14 | E188: 0.14
B189: вода | D189: 10.70 | E189: 10.70
B190: масса полуфабриката | E190: 39.90
B191: для крошки:
B192: мука пшеничная | D192: 0.84 | E192: 0.84
B193: масло сливочное | D193: 0.70 | E193: 0.70
B194: масса крошки | E194: 1.40
B195: масло растительное для смазки изделй | D195: 0.70 | E195: 0.70
A196: Итого: | C196: =C182+155+5+130+C166 -> 450 | F196: =F182+F177+F167+F166 -> 22.79 | G196: =G182+G177+G167+G166 -> 21.90 | H196: 57.98 | I196: 519.62 | J196: 5.23
A197: ВСЕГО: | C197: =C114+C118+C164+C196 -> 1518 | F197: =F114+F118+F164+F196 -> 53.01 | G197: =G114+G118+G164+G196 -> 54.70 | H197: =H114+H118+H164+H196 -> 186.29 | I197: =I114+I118+I164+I196 -> 1449.26 | J197: =J114+J118+J164+J196 -> 17.11
A199: День 3 - ий
A200: Наименование блюд и | C200: Масса | D200: Кол - во | E200: Кол - во | F200: Пищевые вещества | I200: Энергетическая | J200: Витамин | K200: Сборник
A201: продуктов | C201: порции | D201: (в гр ) | E201: (в гр ) | I201: ценность | K201: рецептур
D202: брутто | E202: нетто | F202: белки | G202: жиры | H202: угл-ды | I202: Ккал | J202: С
B203: ЗАВТРАК
A204: Каша "Дружба" молочная с маслом сливочным | C204: 140/3 | F204: 4.22 | G204: 4.92 | H204: 23.38 | I204: 155.56 | J204: 0.60 | K204: ТТК №7Д
B205: Крупа рисовая | D205: 10 | E205: 10
B206: Крупа пшенная | D206: 7.5 | E206: 7.5
... 819 more rows

Sheet от 3 до 7 лет
A1: Утверждаю | H1: Согласовано
A2: Директор ООО"АБК - Пэймент" | H2: Руководитель дошкольной образовательной
A3: Рахматуллин Р.Р. | H3: организации
C5: Примерное 10-дневное меню
C6: для организации питания детей с аллергическими заболеваниями
C7: в дошкольных учреждениях с 12 - часовым пребыванием от 3 до 7 лет
A9: День 1 - ый
A10: Наименование блюд и | C10: Масса | D10: Кол - во | E10: Кол - во | F10: Пищевые вещества | I10: Энергетическая | J10: Витамин | K10: Сборник рецептур
A11: продуктов | C11: порции | D11: (в гр ) | E11: (в гр ) | I11: ценность
D12: брутто | E12: нетто | F12: белки | G12: жиры | H12: угл-ды | I12: Ккал | J12: С
B13: ЗАВТРАК
A14: Каша кукурузная молочная с маслом сливочным | C14: 180/5 | F14: 6.84 | G14: 7.10 | H14: 45.66 | I14: 274.20 | J14: 0.86 | K14: ТТК №2Д
B15: Крупа кукурузная | D15: 22.50 | E15: 22.50
B16: Молоко | D16: 90.00 | E16: 90.00
B17: Вода | D17: 68.00 | E17: 68.00
B18: Сахар | D18: 2.50 | E18: 2.50
B19: соль иодированная | D19: 0.50 | E19: 0.50
B20: Масло сливочное | D20: 5.00 | E20: 5.00
A21: Кофейный напиток с молоком | C21: 180/6 | F21: 2.85 | G21: 2.41 | H21: 10.35 | I21: 74.58 | J21: 1.17 | K21: №414 Дели 2016
B22: Кофейный напиток | D22: 2.50 | E22: 2.50
B23: Сахар | D23: 6.00 | E23: 6.00
B24: Молоко | D24: 90.00 | E24: 90.00
B25: Вода | D25: 108.00 | E25: 108.00
A26: Бутерброд с маслом сливочным | C26: 30/5 | F26: 2.29 | G26: 4.50 | H26: 15.49 | I26: 111.68 | K26: №1 Дели2016
B27: Батон нарезной | D27: 30.00 | E27: 30.00
B28: Масло сливочное | D28: 5.00 | E28: 5.00
A29: Итого: | C29: 406 | F29: =F26+F21+F14 -> 11.98 | G29: =G26+G21+G14 -> 14.01 | H29: 71.50 | I29: 460.46 | J29: 2.03
B30: 2 - ой ЗАВТРАК
A31: Кисломолочный напиток | C31: 180/3 | F31: 5.22 | G31: 4.50 | H31: 10.19 | I31: 102.00 | J31: 1.26 | K31: №420 СБ дошк 2016
A32: (Кефир,ряженка,катык,напиток ацидофильный) | B32: кисломолочный напиток | D32: 185.00 | E32: 180.00
B33: сахар | D33: 3.00 | E33: 3.00
A34: Итого: | C34: 183 | F34: =F31 -> 5.22 | G34: =G31 -> 4.50 | H34: 10.19 | I34: 102.00 | J34: 1.26
B35: ОБЕД
A36: Салат из моркови с изюмом | C36: 60 | F36: 0.75 | G36: 0.08 | H36: 13.37 | I36: 57.18 | J36: 2.41 | K36: №66 сб школьн. 2017
B37: морковь | D37: 67.50 | E37: 54.00
B38: изюм | D38: 7.20 | E38: 7.00
B39: сахар | D39: 0.30 | E39: 0.30
A40: Суп гороховый с картофелем на бульоне из индейки, с гренками | C40: 180/10 | F40: 5.20 | G40: 3.95 | H40: 19.51 | I40: 143.56 | J40: 4.19 | K40: №87, сб дошк2016
B41: Картофель | D41: 53.20 | E41: 40.00
B42: Горох | D42: 16.20 | E42: 16.00
B43: Морковь | D43: 12.80 | E43: 10.00
B44: Лук репчатый | D44: 9.60 | E44: 8.00
B45: Масло растительное | D45: 4.00 | E45: 4.00
B46: соль иодированная | D46: 0.60 | E46: 0.60
B47: Бульон | D47: 140.00 | E47: 140.00
B48: гренки пшеничные: | E48: 10
B49: хлеб пшеничный | D49: 18.75 | E49: 15.75
A50: Плов из отварной индейки | C50: 200 | F50: 16.94 | G50: 7.94 | H50: 45.75 | I50: 290.64 | J50: 5.44 | K50: №321 сбдошк2016
B51: филе грудок индейки | D51: 47.25 | E51: 45.0
B52: масса отварного филе грудок индейки | E52: 32.0
B53: масло сливочное | D53: 8.0 | E53: 8.0
B54: Лук репчатый | D54: 11.9 | E54: 10.00
B55: Морковь | D55: 16.3 | E55: 13.00
B56: Крупа рисовая | D56: 55.0 | E56: 55.0
B57: вода | D57: 86.0 | E57: 86.0
B58: соль иодированная | D58: 0.8 | E58: 0.8
B59: масса гарнира | E59: 168.0
B60: масса рагу с мясом | E60: 200.00
A61: Компот из урюка | C61: 180/6 | F61: 0.40 | G61: 0.02 | H61: 16.60 | I61: 68.20 | J61: 2.44 | K61: №394 сб дошк 2016
B62: урюк | D62: 18.4 | E62: 18.0
B63: масса отварных сухофруктов | E63: 28.8
B64: Сахар | D64: 6 | E64: 6.0
B65: вода | D65: 183 | E65: 183.0
A66: Хлеб ржаной | C66: 60 | D66: 60.00 | E66: 60.00 | F66: 3.96 | G66: 0.72 | H66: 23.78 | I66: 118.92 | J66: 0.00 | K66: табл 6 стр 144,Дели + 2012
A67: Итого: | C67: 696 | F67: =F66+F61+F50+F40+F36 -> 27.25 | G67: =G66+G61+G50+G40+G36 -> 12.71 | H67: 119.02 | I67: 678.50 | J67: 14.48
B68: УПЛОТНЕННЫЙ ПОЛДНИК
A69: Фрукты свежие | C69: 100 | D69: 100 | E69: 100 | F69: 0.40 | G69: 0.40 | H69: 9.80 | I69: 47.00 | J69: 10.00 | K69: №386 СБ
A70: (яблоки зеленые ) | K70: дошк.2016
A71: Котлеты рыбные | C71: 70 | F71: 8.99 | G71: 4.26 | H71: 7.82 | I71: 101.72 | J71: 0.46 | K71: №234 сб шк 2017
B72: рыба (минтай с/м БГ) | D72: 63.30 | E72: 46.2
B73: соль иодированная | D73: 0.7 | E73: 0.7
B74: хлеб пшеничный | D74: 12.6 | E74: 12.6
B75: молоко | D75: 18.20 | E75: 18.2
B76: сухари панировочные | D76: 7.0 | E76: 7.0
B77: масса полуфабриката | E77: 81.0
B78: масло растительное | D78: 3.0 | E78: 3.0
A79: Пюре Картофельное | C79: 140 | F79: 2.86 | G79: 4.48 | H79: 19.08 | I79: 128.10 | J79: 16.96 | K79: № 339 СБ дошк 2016
B80: Картофель | D80: 159.60 | E80: 119.70
B81: Молоко | D81: 22.12 | E81: 21.00
B82: Масло сливочное | D82: 5.00 | E82: 5.00
B83: соль иодированная | D83: 0.52 | E83: 0.52
A84: Чай с сахаром | C84: 180/6 | F84: 0.06 | G84: 0.02 | H84: 6.02 | I84: 24.10 | J84: 0.03 | K84: №411 Дели 2016
B85: чай весовой | D85: 0.45 | E85: 0.45
B86: сахар | D86: 6.00 | E86: 6.00
B87: Вода | D87: 180.00 | E87: 180.00
A88: Хлебцы ржаные | B88: хлебцы ржаные | C88: 20 | D88: 20.00 | E88: 20.00 | F88: 1.44 | G88: 0.26 | H88: 13.92 | I88: 63.60 | K88: ТТК
A89: Хлеб ржаной | C89: 30 | D89: 30.00 | E89: 30.00 | F89: 1.98 | G89: 0.36 | H89: 11.89 | I89: 59.46 | J89: 0.00 | K89: табл 6 стр 144,Дели + 2012
A90: Итого: | C90: =C89+C88+186+C79+C71+C69 -> 546 | F90: =F89+F88+F84+F79+F71+F69 -> 15.73 | G90: =G89+G88+G84+G79+G71+G69 -> 9.78 | H90: 68.53 | I90: 423.98 | J90: 27.45
A91: ВСЕГО: | C91: =C29+C34+C67+C90 -> 1831 | F91: =F29+F34+F67+F90 -> 60.19 | G91: =G29+G34+G67+G90 -> 41.00 | H91: =H29+H34+H67+H90 -> 269.24 | I91: =I29+I34+I67+I90 -> 1664.94 | J91: =J29+J34+J67+J90 -> 45.22
A93: День 2- ой
A94: Наименование блюд и | C94: Масса | D94: Кол - во | E94: Кол - во | F94: Пищевые вещества | I94: Энергетическая | J94: Витамин | K94: Сборник
A95: продуктов | C95: порции | D95: (в гр ) | E95: (в гр ) | I95: ценность | K95: рецептур
D96: брутто | E96: нетто | F96: белки | G96: жиры | H96: угл-ды | I96: Ккал | J96: С
B97: ЗАВТРАК
A98: Каша полбяная молочная с маслом сливочным | C98: 180/3 | F98: 4.81 | G98: 7.85 | H98: 29.38 | I98: 207.32 | J98: 0.86 | K98: ТТК №1Д
B99: Крупа полбяная | D99: 22.50 | E99: 22.50
B100: Молоко | D100: 90.00 | E100: 90.00
B101: вода | D101: 68.00 | E101: 68.00
B102: Сахар | D102: 2.50 | E102: 2.50
B103: соль иодированная | D103: 0.50 | E103: 0.50
B104: Масло сливочное | D104: 3.00 | E104: 3.00
A105: Какао с молоком | C105: 180/6 | F105: 3.67 | G105: 3.19 | H105: 10.87 | I105: 90.78 | J105: 1.43 | K105: №416 Дели 2016
B106: Какао-порошок | D106: 2.00 | E106: 2.00
B107: Сахар | D107: 6.00 | E107: 6.00
B108: Молоко | D108: 110.00 | E108: 110.00
B109: Вода | D109: 80.00 | E109: 80.00
A110: Бутерброд с сыром, маслом сливочным | C110: 30/5/5 | F110: 3.61 | G110: 5.69 | H110: 12.92 | I110: 115.67 | J110: 0.04 | K110: №3 сб дошк 2016
B111: Батон нарезной | D111: 30.00 | E111: 30.00
B112: Сыр | D112: 5.10 | E112: 5.00
B113: Масло сливочное | D113: 5.00 | E113: 5.00
A114: Итого: | C114: 403 | F114: =F98+F105+F110 -> 12.09 | G114: =G98+G105+G110 -> 16.73 | H114: 53.17 | I114: 413.77 | J114: 2.33
B115: 2 - ой ЗАВТРАК
A116: Кисломолочный напиток | C116: 180 | F116: 5.22 | G116: 4.50 | H116: 7.56 | I116: 91.80 | J116: 0.54 | K116: №420 СБ дошк 2016
A117: (Кефир,ряженка,катык,напиток ацидофильный) | B117: кисломолочный напиток | D117: 185 | E117: 180
A118: Итого: | C118: 180 | F118: =F116 -> 5.22 | G118: =G116 -> 4.50 | H118: 7.56 | I118: 91.80 | J118: 0.54
B119: ОБЕД
A120: Салат из свежей капусты с морковью | C120: 60 | F120: 0.84 | G120: 3.05 | H120: 5.42 | I120: 52.44 | J120: 2.79 | K120: №21 сб дошк 2016
B121: капуста свежая | D121: 69.38 | E121: 55.50
B122: масса прогретой капусты | E122: 50.00
B123: морковь | D123: 7.50 | E123: 6.00
B124: Сахар | D124: 1.00 | E124: 1.00
B125: Масло растительное | D125: 3.00 | E125: 3.00
B126: соль иодированная | D126: 0.30 | E126: 0.30
A127: Борщ со свежей капустой, картофелем, со сметаной | C127: 180/7 | F127: 1.48 | G127: 4.59 | H127: 8.12 | I127: 85.97 | J127: 7.71 | K127: №63,сбдошк2016
B128: Капуста свежая | D128: 20.00 | E128: 16.00
B129: Картофель | D129: 21.28 | E129: 16.00
B130: Морковь | D130: 12.50 | E130: 10.00
B131: Лук репчатый | D131: 9.60 | E131: 8.00
B132: Свекла | D132: 41.00 | E132: 32.00
B133: Сахар | D133: 0.90 | E133: 0.90
B134: Томат-паста | D134: 1.00 | E134: 1.00
B135: Масло растительное | D135: 4.00 | E135: 4.00
B136: соль иодированная | D136: 0.60 | E136: 0.60
B137: Вода | D137: 140.00 | E137: 140.00
B138: Сметана | D138: 7.00 | E138: 7.00
A139: Биточки "Домашние" (из индейки) | C139: 70 | F139: 10.38 | G139: 8.10 | H139: 14.95 | I139: 154.75 | J139: 0.07 | K139: Акт проработки от 25.12.2018 №569
B140: филе грудок индейки | D140: 57.9 | E140: 55.13
B141: морковь | D141: 16.53 | E141: 13.12
B142: Лук репчатый | D142: 18 | E142: 15
B143: Масло растительное | D143: 1.5 | E143: 1.5
B144: масса припущенного лука | E144: 8
B145: соль иодированная | D145: 0.57 | E145: 0.57
B146: яйцо | D146: 0.84 | E146: 0.7
B147: Мука пшеничная | D147: 5.25 | E147: 5.25
B148: масса полуфабриката | E148: 82.6
B149: масло растительное | D149: 2.6 | E149: 2.6
A150: Каша гречневая рассыпчатая с овощами с маслом сливочным | C150: 130/3 | F150: 3.80 | G150: 2.37 | H150: 26.43 | I150: 141.96 | J150: 1.36 | K150: №180, сб дошк2016
B151: крупа гречневая | D151: 54.70 | E151: 54.70
B152: вода питьевая | D152: 82.00 | E152: 82.00
B153: соль иодированная | D153: 0.33 | E153: 0.33
B154: масса каши | E154: 115.00
B155: морковь | D155: 22.00 | E155: 17.00
B156: лук репчатый | D156: 2.40 | E156: 2.00
B157: масса каши с овощами | E157: 130.00
B158: масло сливочное | D158: 3.00 | E158: 3.00
A159: Напиток из сухофруктов | C159: 180 | F159: 0.60 | G159: 0.08 | H159: 16.81 | I159: 71.52 | J159: 0.65 | K159: №394 Сб дошк 2016
B160: сухофрукты | D160: 15.30 | E160: 15.00
B161: Сахар | D161: 6.00 | E161: 6.00
B162: вода | D162: 183.00 | E162: 183.00
A163: Хлеб ржаной | C163: 60 | D163: 60.00 | E163: 60.00 | F163: 3.96 | G163: 0.72 | H163: 23.78 | I163: 118.92 | J163: 0.00 | K163: табл 6 стр 144,Дели + 2012
A164: Итого: | C164: 690 | F164: =F163+F159+F150+F139+F127+F120 -> 21.06 | G164: =G163+G159+G150+G139+G127+G120 -> 18.91 | H164: 95.51 | I164: 625.56 | J164: 12.58
B165: УПЛОТНЕННЫЙ ПОЛДНИК
A166: Сок гипоаллергенный в инд упаковке | C166: 125 | D166: 125 | E166: 125 | F166: 0.63 | G166: 0.00 | H166: 12.63 | I166: 53.34 | J166: 2.50 | K166: №418 Дели2016
A167: Запеканка творожная с повидлом | C167: 130/20 | F167: 22.82 | G167: 20.06 | H167: 25.55 | I167: 372.60 | J167: 0.54 | K167: №251, сбдошк 2016
B168: Творог | D168: 121.55 | E168: 119.20
B169: Крупа манная | D169: 7.80 | E169: 7.80
B170: Яйцо | D170: 6.50 | E170: 5.42
B171: Сахар | D171: 10.40 | E171: 10.40
B172: Сметана | D172: 5.20 | E172: 5.20
B173: Масло сливочное | D173: 5.20 | E173: 5.20
B174: Сухари панировочные | D174: 5.20 | E174: 5.20
B175: соль иодированная | D175: 0.65 | E175: 0.65
B176: повидло | D176: 20.00 | E176: 20.00
A177: Чай с сахаром и лимоном | C177: 180/6/7 | F177: 0.13 | G177: 0.03 | H177: 6.23 | I177: 26.48 | J177: 2.83 | K177: №410,412 Дели 2016
B178: чай весовой | D178: 0.45 | E178: 0.45
B179: Сахар | D179: 6.00 | E179: 6.00
B180: лимон | D180: 8.00 | E180: 7.00
B181: Вода | D181: 180.00 | E181: 180.00
A182: Булочка дорожная | C182: 50 | F182: 3.39 | G182: 6.98 | H182: 26.07 | I182: 181.00 | K182: №453 сб дошк2016
B183: Мука пшеничная | D183: 30.50 | E183: 30.00
B184: мука пшеничная на подпыл | D184: 1.00 | E184: 1.00
B185: Сахар | D185: 6.00 | E185: 6.00
B186: Масло сливочное | D186: 6.50 | E186: 6.50
B187: соль иодированная | D187: 0.30 | E187: 0.30
B188: дрожжи сухие | D188: 0.20 | E188: 0.20
B189: вода | D189: 15.30 | E189: 15.30
B190: масса полуфабриката | E190: 57.00
B191: для крошки:
B192: мука пшеничная | D192: 1.20 | E192: 1.20
B193: масло сливочное | D193: 1.00 | E193: 1.00
B194: масса крошки | E194: 2.00
B195: масло растительное для смазки изделй | D195: 1.00 | E195: 1.00
A196: Итого: | C196: =C182+186+7+150+C166 -> 518 | F196: =F182+F177+F167+F166 -> 26.97 | G196: =G182+G177+G167+G166 -> 27.07 | H196: 70.48 | I196: 633.42 | J196: 5.87
A197: ВСЕГО: | C197: =C114+C118+C164+C196 -> 1791 | F197: =F114+F118+F164+F196 -> 65.34 | G197: =G114+G118+G164+G196 -> 67.21 | H197: =H114+H118+H164+H196 -> 226.72 | I197: =I114+I118+I164+I196 -> 1764.55 | J197: =J114+J118+J164+J196 -> 21.32
A199: День 3 - ий
A200: Наименование блюд и | C200: Масса | D200: Кол - во | E200: Кол - во | F200: Пищевые вещества | I200: Энергетическая | J200: Витамин | K200: Сборник
A201: продуктов | C201: порции | D201: (в гр ) | E201: (в гр ) | I201: ценность | K201: рецептур
D202: брутто | E202: нетто | F202: белки | G202: жиры | H202: угл-ды | I202: Ккал | J202: С
B203: ЗАВТРАК
A204: Каша "Дружба" молочная с маслом сливочным | C204: 180/5 | F204: 5.36 | G204: 9.85 | H204: 29.49 | I204: 229.05 | J204: 0.86 | K204: ТТК №7Д
... 821 more rows
